Cogmind - Beta 14 @@@ ROGUE MODE // 2025.01.17 @ 20:52:59 Player: Mathewnd Result: Destroyed by Y-45 Defender with Heavy Assault Rifle Performance ------------- Evolutions (2) 1000 Regions Visited (6) 1200 Robots Destroyed (86) 430 Value Destroyed (2551) 2551 Prototype IDs (1) 20 Alien Tech Used (0) 0 Bonus (74) 74 TOTAL SCORE: 5275 Bonus ------- Follower Combat Kills 74 Cogmind --------- Core Integrity 0/550 Matter 50/300 Energy 47/100 System Corruption 0% Temperature Cool (36) Movement Flying (32) Location -8/Materials Parts ------- > --- POWER (1) -------- (None) > --- PROPULSION (4) --- Improved VTOL Module Improved VTOL Module > --- UTILITY (4) ------ Improved Signal Interpreter Hacking Suite > --- WEAPON (2) ------- (None) > --- INVENTORY (5) ---- Light Nuclear Core Flight Unit Flight Unit Hacking Suite Heavy Assault Rifle Peak State ------------ > --- POWER ------------ Improved Ion Engine > --- PROPULSION ------- Light Treads Light Treads Light Treads Light Treads > --- UTILITY ---------- Huge Storage Unit Visual Processing Unit Sensor Array Improved Signal Interpreter > --- WEAPON ----------- Heavy Assault Rifle Autogun > --- INVENTORY -------- Light Ion Engine Light Nuclear Core Light Nuclear Core Light Treads Light Treads Flight Unit Flight Unit Flight Unit Flight Unit Flight Unit Flight Unit Improved VTOL Module Improved VTOL Module Small Storage Unit Medium Storage Unit Visual Processing Unit Improved Sensor Array ECM Suite Hacking Suite Heavy Assault Rifle Heavy Assault Rifle Autogun Grenade Launcher Rocket Launcher Hammer [Rating: 21] Favorites ----------- Power Improved Ion Engine Engine Improved Ion Engine Propulsion Light Treads Treads Light Treads Wheel Compact Wheel Flight Unit Improved VTOL Module Utility Huge Storage Unit Device Sensor Array Storage Huge Storage Unit Processor Targeting Computer Protection Light Armor Plating Weapon Autogun Energy Gun Medium Laser Ballistic Gun Autogun Launcher Rocket Launcher Build | -11 -10 -9 -9 -9 -8 -8 ------- Run | Yrd Mat Mat Min Exi Min Mat Slots Evolved 4 | . . 2 . . . 2 Power . | . . . . . . . Propulsion 2 | . . 1 . . . 1 Utility 2 | . . 1 . . . 1 Weapon . | . . . . . . . Parts Attached 50 | 5 7 6 10 . 3 19 Power 3 | . 1 1 . . 1 . Engine 3 | . 1 1 . . 1 . Core . | . . . . . . . Reactor . | . . . . . . . Propulsion 22 | 2 1 4 6 . . 9 Treads 14 | 2 . 1 4 . . 7 Leg . | . . . . . . . Wheel 6 | . 1 3 2 . . . Hover . | . . . . . . . Flight 2 | . . . . . . 2 Utility 9 | 1 3 1 . . . 4 Device 1 | . . . . . . 1 Storage 3 | 1 2 . . . . . Processor 3 | . 1 . . . . 2 Hackware 1 | . . . . . . 1 Protection 1 | . . 1 . . . . Artifact . | . . . . . . . Weapon 16 | 2 2 . 4 . 2 6 Energy Gun 1 | 1 . . . . . . Energy Cannon . | . . . . . . . Ballistic Gun 12 | 1 2 . 3 . 2 4 Ballistic Cannon . | . . . . . . . Launcher 3 | . . . 1 . . 2 Special Weapon . | . . . . . . . Impact Weapon . | . . . . . . . Slashing Weapon . | . . . . . . . Piercing Weapon . | . . . . . . . Special Melee Weapon . | . . . . . . . Unidentified Prototypes . | . . . . . . . Parts Lost 28 | . . 2 8 . . 18 Power 3 | . . 1 1 . . 1 Propulsion 14 | . . 1 3 . . 10 Utility 3 | . . . 1 . . 2 Weapon 8 | . . . 3 . . 5 Highest Loss Streak 11 | . . 1 5 . . 11 To Critical Strikes 1 | . . . 1 . . . Average Slot Usage (%) 79 | . 85 89 76 55 87 79 Engine 7 | . 13 9 2 . 10 8 Treads 24 | . 17 19 23 22 22 33 Wheel 7 | . 10 10 9 11 11 . Storage 10 | . 14 11 11 11 11 8 Processor 8 | . 1 11 11 11 11 6 Ballistic Gun 18 | . 26 22 18 . 21 17 Peak Build Rating 21 | 5 11 15 15 10 13 21 Average Rating 12 | 4 8 13 11 8 12 15 On Entrance 9 | . 5 11 15 11 8 13 Naked Turns . | . . . . . . . Heaviest Build 96 | 9 89 96 96 80 93 94 Greatest Support 80 | 40 40 16 60 16 16 80 Greatest Overweight (x) 9 | . 5 9 9 4 5 5 Average Overweight (x) 4 | . 3 7 6 4 4 1 Largest Inventory Capacity 25 | 8 25 25 25 25 25 25 Average Capacity 24 | 6 22 25 25 25 25 24 Most Carried 25 | 7 18 25 25 25 25 25 Average Carried 21 | 4 12 22 24 25 22 23 Final Capacity 25 | 8 25 25 25 25 25 5 Final Carried 25 | 5 18 25 24 25 22 5 Class Distribution -------------------- 55% | Mutant 36% | Scavenger-Mutant 8% | Scavenger-Skirmisher Dominant Class ---------------- Mutant | -10/Materials Mutant | -9/Materials Mutant | -9/Mines Mutant | -9/Exiles Scavenger-Mutant | -8/Mines Scavenger-Mutant | -8/Materials Resources | -11 -10 -9 -9 -9 -8 -8 ----------- Run | Yrd Mat Mat Min Exi Min Mat Matter Collected 2122 | 265 285 311 459 . 173 629 Remotely . | . . . . . . . Salvage Created 3162 | 92 498 457 625 . 367 1123 Parts 187 | 4 29 29 37 . 23 65 Haulers Intercepted 4 | . 2 . . . . 2 Recyclers Shooed 3 | . . . . . 1 2 Parts Field Recycled . | . . . . . . . Retrieved Matter . | . . . . . . . Parts Self-Destructed . | . . . . . . . Prevented . | . . . . . . . Kills | -11 -10 -9 -9 -9 -8 -8 ------- Run | Yrd Mat Mat Min Exi Min Mat Combat Hostiles Destroyed 61 | . 9 9 18 . 3 22 Guns 52 | . 9 9 14 . 3 17 AOE 9 | . . . 4 . . 5 Classes Destroyed 14 | 2 3 5 2 . . 2 Worker 3 | . . 1 2 . . . Builder 5 | . 1 . . . 2 2 Tunneler 3 | 1 . . 1 . 1 . Hauler 4 | . 2 . . . . 2 Recycler 4 | 1 . . 1 . 2 . Mechanic 1 | . . . . . . 1 Operator 3 | . . . . . . 3 Watcher 2 | . . 1 . . . 1 Swarmer 8 | . . . 8 . . . Grunt 37 | . 9 5 5 . 3 15 Brawler 4 | . . 1 2 . . 1 Duelist 2 | . . 1 1 . . . Sentry 8 | . . 2 . . . 6 Demolisher 2 | . . . 2 . . . Best Kill Streak 11 | 2 5 3 5 . 3 11 Combat Bots Only 8 | . 4 2 4 . 2 8 Max Kills in Single Turn 5 | 1 1 1 4 . 1 5 Gunslinging 1 | . . . 1 . . . Exploded 4 | . . . 4 . . 3 Melee . | . . . . . . . Uniques/NPCs Destroyed . | . . . . . . . Combat | -11 -10 -9 -9 -9 -8 -8 -------- Run | Yrd Mat Mat Min Exi Min Mat Hostile Shots Fired 349 | . 26 24 75 . 12 212 Missed 106 | . 10 11 15 . 3 67 Damage Taken 3796 | . 207 203 992 . 140 2254 Core 899 | . 46 . 269 . 32 552 Absorbed by Shields . | . . . . . . . Core Remaining (%) 68 | 100 81 . . . 24 . Volleys Fired 249 | 5 38 28 51 . 17 110 Largest 2 | 2 2 2 2 . 2 2 Hottest 70 | 70 70 46 46 . 46 46 Shots Fired 464 | 10 76 56 90 . 34 198 Gun 456 | 10 76 56 89 . 34 191 Cannon . | . . . . . . . Launcher 8 | . . . 1 . . 7 Special . | . . . . . . . Kinetic 446 | 5 71 56 89 . 34 191 Thermal 10 | 5 5 . . . . . Explosive 8 | . . . 1 . . 7 Electromagnetic . | . . . . . . . Robot Hit Streak 18 | 3 18 9 9 . 8 17 Robot Miss Streak 5 | 4 4 5 5 . 3 4 Penetration Max . | . . . . . . . Secondary Targets 11 | . 1 2 4 . . 4 Max Gunslinging Chain 1 | . 1 1 1 . . 1 Shots Hit Robots 300 | 5 41 36 57 . 21 140 Core Hits 146 | 3 19 17 30 . 13 64 Critical Kills . | . . . . . . . Critical Parts Destroyed 1 | 1 . . . . . . Critical Strikes 2 | 1 1 . . . . . Burn 1 | . 1 . . . . . Destroy 1 | 1 . . . . . . Melee Attacks . | . . . . . . . Impact . | . . . . . . . Slashing . | . . . . . . . Piercing . | . . . . . . . Sneak Attacks . | . . . . . . . Combat Hostiles . | . . . . . . . Follow-up Attacks . | . . . . . . . Damage Inflicted 6248 | 75 654 591 1076 . 294 3558 Guns 4622 | 75 654 591 832 . 294 2176 Cannons . | . . . . . . . Explosions 1614 | . . . 232 . . 1382 Melee . | . . . . . . . Ramming 12 | . . . 12 . . . Kinetic 4533 | 24 616 591 832 . 294 2176 Thermal 89 | 51 38 . . . . . Explosive 1614 | . . . 232 . . 1382 Electromagnetic . | . . . . . . . Impact . | . . . . . . . Slashing . | . . . . . . . Piercing . | . . . . . . . Highest Corruption 5 | . 5 . 1 1 1 . Average Corruption 1 | . 4 . 1 1 1 . Corruption Purged . | . . . . . . . Corruption Blocked . | . . . . . . . Effects 23 | . 13 . 8 . 2 . Message Errors 7 | . 5 . 2 . . . Matter Fused 4 | . 1 . 2 . 1 . Heat Flow Errors 1 | . . . . . 1 . Energy Discharges 5 | . 1 . 4 . . . Parts Fused 1 | . 1 . . . . . Data Loss (major) 2 | . 2 . . . . . Misfires 1 | . 1 . . . . . Alerts 1 | . 1 . . . . . Weapon Failures 1 | . 1 . . . . . Overload Shots . | . . . . . . . Overflow Damage 181 | . . . 26 . . 155 Projectiles . | . . . . . . . Explosions 181 | . . . 26 . . 155 Melee . | . . . . . . . Knockbacks 1 | . . . 1 . . . Impact 1 | . . . 1 . . . Kinetic . | . . . . . . . Secondary . | . . . . . . . Self-Inflicted Damage 27 | . . . 6 . . 21 Shots 1 | . . . . . . 1 Rammed 1 | . . . 1 . . . Targets Rammed 1 | . . . 1 . . . Kicked . | . . . . . . . Crushed . | . . . . . . . Highest Temperature 129 | . 78 27 31 . 129 30 Average Temperature 11 | . 14 8 9 . 16 7 Received Heat Transfer 1554 | . 117 90 96 . 81 1170 Siege Activations . | . . . . . . . Robots Corrupted . | . . . . . . . Combat Hostiles . | . . . . . . . Parts Fried . | . . . . . . . Impact Corruptions . | . . . . . . . Robots Melted . | . . . . . . . Combat Hostiles . | . . . . . . . Parts Melted 1 | . 1 . . . . . Heat Transferred 333 | 148 185 . . . . . Parts Sabotaged . | . . . . . . . Parts Stolen . | . . . . . . . Parts Stripped . | . . . . . . . Power Chain Reactions . | . . . . . . . Alert | -11 -10 -9 -9 -9 -8 -8 ------- Run | Yrd Mat Mat Min Exi Min Mat Peak Influence 374 | 10 230 318 267 . 110 374 Initial 123 | . 6 42 123 . . . Average 122 | 2 90 202 142 . 36 134 Maximum Alert Level 1 | . 1 1 1 . . 1 Low Security (%) 83 | 100 86 41 83 . 100 87 Level 1 16 | . 13 58 16 . . 12 Level 2 . | . . . . . . . Level 3 . | . . . . . . . Level 4 . | . . . . . . . Level 5 . | . . . . . . . High Security . | . . . . . . . Max Security . | . . . . . . . Squads Dispatched 11 | . 2 1 . . 1 7 Investigation 3 | . 1 1 . . . 1 Extermination . | . . . . . . . Reinforcement 5 | . 1 . . . 1 3 Assault . | . . . . . . . Garrison 3 | . . . . . . 3 Intercept . | . . . . . . . Searches Triggered . | . . . . . . . Construction Impeded 1 | . . . . . 1 . Haulers Reinforced . | . . . . . . . Active Scanning Responses . | . . . . . . . Cargo Convoy Interrupts . | . . . . . . . Stealth | -11 -10 -9 -9 -9 -8 -8 --------- Run | Yrd Mat Mat Min Exi Min Mat Distress Signals 6 | . 1 . . . 1 4 Communications Jammed . | . . . . . . . Distress Signals . | . . . . . . . Times Spotted 93 | . 15 10 23 . 4 41 Peak Tracking Total 7 | . 3 2 4 . 2 7 Tactical Retreats 2 | . . . 1 . 1 . Traps | -11 -10 -9 -9 -9 -8 -8 ------- Run | Yrd Mat Mat Min Exi Min Mat Traps Triggered 4 | . 4 . . . . . Indirectly . | . . . . . . . Trap Hack Attempts . | . . . . . . . Triggered . | . . . . . . . Disarmed . | . . . . . . . Reprogrammed . | . . . . . . . Reused . | . . . . . . . Traps Extracted . | . . . . . . . Installed . | . . . . . . . Triggered . | . . . . . . . Machines | -11 -10 -9 -9 -9 -8 -8 ---------- Run | Yrd Mat Mat Min Exi Min Mat Machines Disabled 5 | . . 1 . . . 4 Max in Single Turn 2 | . . 1 . . . 2 Machines Repaired . | . . . . . . . Machines Dismantled . | . . . . . . . Machines Sabotaged . | . . . . . . . Overloaded Fab Kills . | . . . . . . . Hacking | -11 -10 -9 -9 -9 -8 -8 --------- Run | Yrd Mat Mat Min Exi Min Mat Machines Accessed 6 | . . 1 . 1 1 3 Terminals 4 | . . 1 . . 1 2 Fabricators . | . . . . . . . Repair Stations . | . . . . . . . Recycling Units . | . . . . . . . Scanalyzers 1 | . . . . . . 1 Garrison Access . | . . . . . . . Total Hacks 15 | . . 5 . 1 2 7 Successful 4 | . . 2 . 1 . 1 Failed 11 | . . 3 . . 2 6 Catastrophic 2 | . . . . . . 2 Database Lockouts . | . . . . . . . Manual 9 | . . 4 . . 2 3 Terminals 11 | . . 5 . . 2 4 Fabricators . | . . . . . . . Repair Stations . | . . . . . . . Recycling Units . | . . . . . . . Scanalyzers 3 | . . . . . . 3 Garrison Access . | . . . . . . . Terminal Hacks 2 | . . 1 . 1 . . Record 1 | . . . . 1 . . Branch Access Points 1 | . . 1 . . . . Fabricator Hacks . | . . . . . . . Repair Station Hacks . | . . . . . . . Recycling Unit Hacks . | . . . . . . . Scanalyzer 1 | . . . . . . 1 Insert Component 1 | . . . . . . 1 Garrison Access Hacks . | . . . . . . . Unauthorized Hacks 1 | . . 1 . . . . Terminals 1 | . . 1 . . . . Botnet 1 | . . 1 . . . . Fabricators . | . . . . . . . Repair Stations . | . . . . . . . Recycling Units . | . . . . . . . Scanalyzers . | . . . . . . . Garrison Access . | . . . . . . . Data Cores Recovered . | . . . . . . . Used . | . . . . . . . Hacking Detections 5 | . . 1 . . 1 3 Full Trace Events 2 | . . 1 . . . 1 Feedback Events . | . . . . . . . Feedback Blocked . | . . . . . . . Robot Schematics Acquired . | . . . . . . . Robots Built . | . . . . . . . Authchips . | . . . . . . . Time . | . . . . . . . Total Robot Build Rating . | . . . . . . . Part Schematics Acquired . | . . . . . . . Parts Built . | . . . . . . . Authchips . | . . . . . . . Time . | . . . . . . . Total Part Build Rating . | . . . . . . . Parts Repaired . | . . . . . . . Time . | . . . . . . . Parts Recycled . | . . . . . . . Recycled Matter . | . . . . . . . Retrieved Matter . | . . . . . . . Retrieved Components . | . . . . . . . Parts Scanalyzed 1 | . . . . . . 1 Part Schematics Acquired . | . . . . . . . Parts Damaged . | . . . . . . . Bothacking | -11 -10 -9 -9 -9 -8 -8 ------------ Run | Yrd Mat Mat Min Exi Min Mat Used RIF Installer . | . . . . . . . Robots Hacked . | . . . . . . . Non-combat . | . . . . . . . Combat . | . . . . . . . Robot Hacks Applied . | . . . . . . . Relay Couplers Released . | . . . . . . . Fabnet Peak Effective % . | . . . . . . . Robots Rewired . | . . . . . . . Allies Hacked . | . . . . . . . Hacks Repelled . | . . . . . . . Allies | -11 -10 -9 -9 -9 -8 -8 -------- Run | Yrd Mat Mat Min Exi Min Mat Total Allies 6 | . . . 6 . . . Largest Group 3 | . . . 3 1 . . Highest-Rated Group 45 | . . . 45 31 . . Highest-Rated Ally 31 | . . . 31 31 . . Total Orders . | . . . . . . . Ally Attacks 32 | . . . 32 . . . Total Damage 309 | . . . 309 . . . Kills 4 | . . . 4 . . . Allies Corrupted . | . . . . . . . Allies Melted . | . . . . . . . Intel | -11 -10 -9 -9 -9 -8 -8 ------- Run | Yrd Mat Mat Min Exi Min Mat Robot Analysis Total . | . . . . . . . Derelict Logs Recovered 2 | . . . 2 . . . Drone Launches . | . . . . . . . Drone Recoveries . | . . . . . . . Exploration | -11 -10 -9 -9 -9 -8 -8 ------------- Run | Yrd Mat Mat Min Exi Min Mat Turns Passed 4109 | 124 561 394 1195 202 436 1197 Spaces Moved 1653 | 61 241 149 482 126 223 371 Core 3 | 3 . . . . . . Treads 510 | 58 58 . 66 . . 328 Legs . | . . . . . . . Wheels 1138 | . 183 149 416 126 223 41 Hover . | . . . . . . . Flight 2 | . . . . . . 2 Fastest Speed 32 | 50 160 175 175 160 160 32 Average Speed 196 | 154 171 201 203 160 174 233 Slowest Speed 480 | 160 175 215 320 160 175 480 Overloaded Moves . | . . . . . . . Propulsion Burnouts . | . . . . . . . Robots Hopped . | . . . . . . . Cave-ins Triggered . | . . . . . . . Exploration Rate (%) 40 | 5 42 21 66 49 62 39 Regions Visited 6 Branch Regions 3 Pre-discovered Areas 2 | . . . 1 1 . . Known Exits Taken 1 | . . 1 . . . . Unknown Exits Taken 5 | 1 1 . 1 1 1 . Scrap Searched . | . . . . . . . Spaces Dug . | . . . . . . . Terrain Destroyed 47 | . . . 9 . . 38 Melee . | . . . . . . . Projectile . | . . . . . . . AOE 47 | . . . 9 . . 38 Terrain Rammed . | . . . . . . . Walls Destroyed . | . . . . . . . Machines Disabled . | . . . . . . . Actions | -11 -10 -9 -9 -9 -8 -8 --------- Run | Yrd Mat Mat Min Exi Min Mat Total 2126 | 80 327 198 619 128 243 531 Wait 93 | . 22 4 54 . 1 12 Move 1647 | 60 240 148 481 125 222 371 Hop . | . . . . . . . Pick Up 56 | 8 14 10 12 . . 12 Fast Attach 17 | 4 3 3 1 . . 6 Attach 23 | 1 2 2 5 . 3 10 Detach 6 | . 3 . . 2 . 1 Swap 10 | . 2 1 4 . . 3 Drop 24 | 2 3 2 10 1 . 6 Fire 249 | 5 38 28 51 . 17 110 Melee . | . . . . . . . Ram 1 | . . . 1 . . . Kick . | . . . . . . . Crush . | . . . . . . . Escape Stasis . | . . . . . . . Rewire . | . . . . . . . Trap . | . . . . . . . Miscellaneous . | . . . . . . . Route ------- -11/Scrapyard -10/Materials -9/Materials (discovered 3 exits: *Min / *Sto x2) -9/Mines (discovered 2 exits: *Mat / *Exi) -9/Exiles -8/Mines -8/Materials (discovered 1 exit: *Fac) History --------- Turn | Location | Event 21 | -11/Scrapyard | Discovered new exit (range 16) 125 | -11/Scrapyard | Entered Materials 310 | -10/Materials | Build established: Mutant 670 | -10/Materials | Discovered new exit (range 10) 686 | -10/Materials | Entered another Materials area 686 | -9/Materials | Evolved 2 slots: Propulsion x1, Utility x1 686 | -9/Materials | Discovered new exit (range 11) 692 | -9/Materials | Identified exit to Mines 692 | -9/Materials | Identified exit to Storage 1080 | -9/Materials | Entered Mines 1130 | -9/Mines | Assembled infested the area 1134 | -9/Mines | Learned 2 Materials zone layouts 1187 | -9/Mines | Received a Rocket Launcher from a helpful Derelict 1219 | -9/Mines | Lost 5 parts (2n1u2w) 1593 | -9/Mines | Core integrity fell below 50% 1642 | -9/Mines | Discovered new exit (range 5) 1670 | -9/Mines | Assisted by bots powering up and referring to "LRC-V3" 1925 | -9/Mines | Lost 3 allies 2206 | -9/Mines | Received a Mining Laser from a helpful Derelict 2268 | -9/Mines | Discovered new exit (range 5) 2275 | -9/Mines | Entered Exiles 2275 | -9/Exiles | Accompanied by 1 ally 2315 | -9/Exiles | Met 8R-AWN 2344 | -9/Exiles | Met EX-HEX 2405 | -9/Exiles | Met EX-DEC 2416 | -9/Exiles | Learned location of Zion (-7) 2464 | -9/Exiles | Discovered new exit (range 10) 2477 | -9/Exiles | Entered Mines 2785 | -8/Mines | Build established: Scavenger-Mutant 2875 | -8/Mines | Discovered new exit (range 15) 2913 | -8/Mines | Entered Materials 2913 | -8/Materials | Evolved 2 slots: Propulsion x1, Utility x1 2914 | -8/Materials | Identified exit to Factory 4053 | -8/Materials | Build established: Scavenger-Skirmisher 4083 | -8/Materials | Destroyed 8 combat bots 4099 | -8/Materials | Core integrity fell below 50% 4108 | -8/Materials | Core integrity fell below 20% 4110 | -8/Materials | Destroyed by Y-45 Defender with Heavy Assault Rifle Last Messages --------------- 04102_ Lgt. Treads destroyed. 04102_ Critical hit (Burn: +37). 04103_ U-05 Engineer lays Concrete. 04104_ The unstable cave ceiling collapses. 04104_ U-05 Engineer lays Concrete. 04104_ Discarded Visual Processing Unit. 04105_ U-05 Engineer lays Concrete. 04105_ Dropped Imp. VTOL Module. 04105_ U-05 Engineer lays Concrete. 04105_ Dropped Imp. VTOL Module. 04106_ Acquired Imp. VTOL Module. 04106_ U-05 Engineer lays Concrete. 04107_ K-01 Serf collects debris. 04107_ U-05 Engineer lays Concrete. 04107_ Dropped Huge Storage Unit. 04108_ U-05 Engineer lays Concrete. 04108_ Acquired Imp. VTOL Module. 04109_ U-05 Engineer lays Concrete. 04109_ Critical hit (Burn: +37). 04110_ Acquired Hacking Suite. Map ----- +----------------------------------------------------+ | ?????????????????????????????????????????????? | | ?????????????????????????????????????????????? | | ??????????????????????# """ # #T "" | | ??????????????????????# # """ #" "" | | ??????????????????????# # """ #" | | ????????????#############+###### """ #" | | ????????????# ### ###??# # | | ????????????# # ########+######### | | ????????????# # | | ????????????# """ """ + | | ????????????# """ """ # | | ????????????# """ """ # #################+ | | ????????????# ## ##??????????# | | ????????????# ## #???????????# | | ????????????############ #???????????# " "" | | ??????###########??????# #???????????# """"" | | ??????# #??????# #???????????# """ | | ??????# #??????# #??################ | | ??????# #??????# #??# | | ??????# #??????# #??# | | ??????# ####?### a #??# | | ??????# """ """ # # ## u#### ########### | | ??????# """ "" # # ## # # | | ??????# """ """ # ## # # | | ?????######+# # ==# u ## # # | | ?????# =*@Yk # # | | ?????# < !!! g k """ "" # | | ?????# !*=]ggg # """ ???# | | ??????#### =!! /% ##+####??"" ???# | | ?????????# Y%= #? ????????????# | | ?????????# " "! w |%! #? ????????????# | | ?????????# "G" #? ???????????# | | ?????????# """ ! T#?"" ???????????# | | ??????????? ##?"Y ??????????# | | ??????????? =#???" ??????????# | | ??????????######+######+####??? #?????????? | | ?????????????????????? ????????###?????????? | | ?????????????????????? ?????????????????????? | | ????????????????????? ?????????????????????? | | ????????????????????? ?????????????????????? | | ???????????????????? ?????????????????????? | | ???????????????????? ?????????????????????? | | ?????????????????????? ?????????????????????? | | ??????????????????????? ?????????????????????? | | ?????????????????????????????????????????????? | | ?????????????????????????????????????????????? | | ?????????????????????????????????????????????? | | ?????????????????????????????????????????????? | | ?????????????????????????????????????????????? | | ?????????????????????????????????????????????? | +----------------------------------------------------+ Best States ------------- Heat Dissipation 31 Energy Generation 12 Energy Capacity 265 Matter Stores 300 Matter Capacity 300 Sight Range 18 Robot Scan Range 14 Terrain Scan Density 10 Armor Coverage 150 Evasion (%) 49 Targeting Accuracy 5 Recoil Reduction 4 Item Schematics ----------------- None Robot Schematics ------------------ None Fabricated ------------ Nothing Alien Tech Used ----------------- None Achievements -------------- None Challenges ------------ None Game ------ Seed VariableShrapnelShielding Manual? 0 Play Time 00:21:42 Cumulative 145.1 hours Start 2025.01.17 @ 20:31:02 End 2025.01.17 @ 20:52:59 Sessions 1 Manual Loads 0 Difficulty Rogue Special Mode None Game No. 121 Rogue 121 Adventurer 0 Explorer 0 Win Type - Total 3 Types 1/0/1/1/0/0/0/0/0 Lore% 68 Gallery% 58 Achievement% 56 Wizard Run 0 Options --------- Layout 1 ASCII 0 Keyboard 1 Movement Arrows Keybinds 0 Fullscreen 2 Font 24/Smallcaps Map View 50x35 Zoom Use 0% Tactical HUD 1 Map Filters NONE Filters NONE Steam 1 RUN: c9728416-5956-4b7b-a342-b086717b275e